bitfinex/quotes_ETHUSD_20250215
["timestamp","ask_amount","ask_price","bid_price","bid_amount"]
[1739602698811,0.3512,2708.5,2708.1,6.69262]
[1739602698965,0.3512,2708.5,2708.1,6.72953459]
[1739602699167,0.3512,2708.5,2708.1,8.53990197]
[1739602699401,0.3512,2708.5,2708.1,8.50298738]
[1739602701801,0.3512,2708.5,2708.1,9.25484264]
[1739602709394,0.3512,2708.5,2708.1,9.24622928]
[1739602710641,1.1236,2708.5,2708.1,8.49437402]
[1739602710794,1.1236,2708.5,2708.1,3.69262]
[1739602711735,1.1236,2708.5,2708.1,6.69262]
[1739602714016,3.83e-06,2708.2,2708.1,6.69262]
[1739602716071,3.83e-06,2708.2,2708.1,7.46212]
[1739602722510,3.83e-06,2708.2,2708.1,8.01212]
[1739602723990,3.83e-06,2708.2,2708.1,11.17224921]
[1739602724192,3.83e-06,2708.2,2708.1,9.89896994]
[1739602725109,3.83e-06,2708.5,2708.4,6.69221]
[1739602725313,3.83e-06,2708.5,2708.4,9.88924974]
[1739602725513,3.83e-06,2708.5,2708.4,9.85233921]
[1739602725808,3.83e-06,2708.5,2708.4,11.20680813]
[1739602728439,3.83e-06,2708.5,2708.4,12.00820813]
[1739602728815,3.83e-06,2708.5,2708.4,12.55820813]
[1739602739552,0.8108,2709.3,2709.2,6.69112]
[1739602739728,0.7808,2710.1,2709.4,3.69073]
[1739602739937,0.7808,2710.1,2709.9,3.0]
[1739602740254,0.7808,2710.1,2709.9,6.69007]
[1739602740626,0.7808,2710.1,2709.8,3.0]
[1739602741022,0.7808,2710.1,2709.8,6.6903]
[1739602741432,0.7808,2710.4,2710.1,3.6898]
[1739602741671,0.7808,2710.4,2710.3,6.16012921]
[1739602742160,0.7808,2710.4,2710.3,3.0]
[1739602742456,0.7247559,2711.3,2710.3,3.0]
[1739602742457,0.7808,2711.2,2710.6,3.6892]
[1739602742657,0.7808,2711.0,2710.3,3.16012921]
[1739602742885,5.31,2711.4,2709.8,0.18429404]
[1739602742886,3.68918,2710.7,2710.0,6.85013921]
[1739602743055,0.7808,2710.6,2710.0,6.85013921]
[1739602743259,0.7808,2710.6,2710.1,3.0]
[1739602743457,3.68935,2710.5,2710.1,3.0]
[1739602743689,3.68949,2710.4,2709.8,3.0]
[1739602743881,0.7808,2710.3,2709.8,3.0]
[1739602744077,3.68991,2710.1,2709.4,3.16012921]
[1739602744285,0.7808,2709.7,2709.1,6.85132921]
[1739602745421,0.7808,2709.7,2709.2,3.0]
[1739602746062,0.7808,2709.7,2709.2,6.69112]
[1739602746674,0.7808,2709.7,2709.3,3.69096]
[1739602746875,0.7808,2709.7,2709.4,3.0]
[1739602748000,0.7808,2709.7,2709.4,9.85096921]
[1739602748697,0.7808,2709.7,2709.6,3.69058]
[1739602748869,0.7808,2709.7,2709.6,3.0]
[1739602755785,0.7808,2709.7,2709.4,6.16012921]
[1739602756620,0.7808,2709.7,2709.6,3.0]
[1739602761666,0.7808,2709.7,2709.6,6.69058]
[1739602761859,0.7808,2709.7,2709.6,3.0]
[1739602762977,0.7808,2709.7,2709.4,6.16012921]
[1739602763648,0.7808,2709.7,2709.4,9.85092921]
[1739602765529,0.7808,2709.7,2709.1,3.16012921]
[1739602765724,4.47133,2709.7,2709.2,3.0]
[1739602766121,0.7808,2709.7,2709.2,6.69103]
[1739602766587,0.7808,2709.7,2709.4,6.69077]
[1739602766725,6.1083,2709.9,2709.6,3.69046]
[1739602769364,6.1083,2709.9,2709.6,7.38095]
[1739602769546,6.1083,2709.9,2709.6,3.69046]
[1739602770181,6.1083,2709.9,2709.7,3.69032]
[1739602770970,6.1083,2709.9,2709.8,3.6903]
[1739602771438,6.1083,2709.9,2709.6,3.69046]
[1739602771640,6.1083,2709.9,2709.6,7.38093]
[1739602771841,6.1083,2709.9,2709.6,3.69046]
[1739602772564,0.7983,2709.9,2709.6,3.69046]
[1739602773965,0.7983,2709.9,2709.7,3.69042]
[1739602775764,0.7983,2709.9,2709.7,7.38076]
[1739602775970,0.7983,2709.9,2709.7,3.69037]
[1739602776172,0.7983,2709.9,2709.8,3.6903]
[1739602777971,5.31,2710.2,2709.8,6.6903]
[1739602777972,0.7983,2710.1,2709.8,6.6903]
[1739602778164,0.7983,2710.1,2710.0,3.69003]
[1739602778664,0.7983,2710.1,2709.9,3.0]
[1739602778852,0.7983,2710.1,2709.9,6.69013]
[1739602783457,0.7983,2710.1,2709.8,3.0]
[1739602785852,0.7983,2710.1,2709.7,3.69035]
[1739602785853,0.7983,2710.1,2709.5,3.8281]
[1739602786053,0.7983,2710.1,2709.9,3.69008]
[1739602789671,0.7983,2710.1,2710.0,3.69003]
[1739602798593,0.7983,2710.1,2709.9,3.69013]
[1739602798800,0.7983,2710.1,2709.8,6.6903]
[1739602800199,0.7983,2710.1,2709.8,3.0]
[1739602800696,4.48821,2710.1,2709.8,3.0]
[1739602800903,0.7983,2710.1,2709.8,3.0]
[1739602803200,4.48826,2710.1,2709.5,3.69068]
[1739602803406,0.7983,2710.1,2709.6,3.69054]
[1739602804321,0.7983,2710.1,2709.8,3.0]
[1739602805704,0.7983,2710.1,2709.7,3.0]
[1739602805911,0.7983,2710.1,2709.6,3.0]
[1739602806286,0.7983,2710.1,2709.6,6.69057]
[1739602806486,4.48823,2710.1,2709.6,3.0]
[1739602806698,0.7983,2710.1,2709.6,6.69052]
[1739602807103,0.7983,2710.1,2709.7,3.69041]
[1739602808973,0.7983,2710.1,2709.6,3.0]
[1739602809178,0.7983,2710.1,2709.6,6.69057]
[1739602809818,0.7983,2710.1,2709.6,3.0]
[1739602810016,4.48826,2710.1,2709.6,3.0]
[1739602810514,0.8073,2710.0,2709.3,4.47882]
[1739602810813,0.8073,2709.7,2709.2,3.69111]
[1739602811175,4.49777,2709.7,2709.1,3.69116]
[1739602811375,0.8142,2709.5,2708.9,3.69143]
[1739602811600,0.8142,2709.5,2709.0,3.0]
[1739602811819,0.8142,2709.5,2708.9,4.74575992]
[1739602812193,0.8142,2709.5,2709.0,6.69139]
[1739602812692,0.8142,2709.5,2709.0,3.0]
[1739602813021,0.8142,2709.5,2709.3,3.69098]
[1739602813718,0.8142,2709.5,2709.1,3.69125]
[1739602813887,0.8142,2709.5,2709.1,4.54852799]
[1739602814087,0.8142,2709.5,2709.2,3.6911]
[1739602814406,0.8142,2709.8,2709.3,3.69094]
[1739602814603,0.8142,2709.8,2709.5,3.0]
[1739602814804,3.68971,2710.3,2709.5,3.828]
[1739602815004,3.68971,2710.3,2709.7,3.69033]
[1739602815712,0.8142,2710.4,2709.9,3.69017]
[1739602816011,6.1242,2710.4,2709.9,3.69017]
[1739602816616,6.1242,2710.4,2710.0,3.69003]
[1739602816784,6.1242,2710.6,2710.1,3.68988]
[1739602817186,6.1242,2710.6,2710.0,7.67815921]
[1739602817388,6.1242,2710.6,2710.0,6.85015921]
[1739602817607,9.81345,2710.6,2709.9,3.0]
[1739602817805,9.81345,2710.6,2709.9,6.69013]
[1739602818224,9.81345,2710.6,2710.0,3.69002]
[1739602819118,6.1242,2710.6,2710.0,3.69002]
[1739602819321,6.1242,2710.6,2710.0,4.810758]
[1739602820323,0.8142,2710.8,2710.3,6.84964921]
[1739602820731,0.8142,2710.8,2710.4,3.0]
[1739602821420,0.8142,2710.8,2710.4,6.68947]
[1739602821992,6.1242,2711.0,2710.4,8.12618192]
[1739602823022,9.81296,2711.0,2710.4,3.0]
[1739602823234,3.68884,2710.9,2710.4,3.0]
[1739602823394,0.8142,2711.0,2710.4,3.0]
[1739602823598,0.8142,2711.0,2710.5,3.68933]
[1739602824122,4.50287,2711.0,2710.4,3.0]
[1739602824528,3.68898,2710.8,2710.2,6.68976]
[1739602824896,8.19163,2711.0,2710.4,3.0]
[1739602825310,4.50287,2711.0,2710.4,3.0]
[1739602825521,3.68882,2710.9,2710.4,3.0]
[1739602826198,0.8142,2711.0,2710.4,7.358352]
[1739602826594,0.8142,2711.0,2710.5,3.68923]
[1739602826822,6.0799,2711.2,2710.7,3.68908]
[1739602827220,9.76831,2711.2,2710.5,3.68923]
[1739602827412,9.76831,2711.2,2710.6,3.6892]
[1739602827801,9.76832,2711.2,2710.4,8.174982]
[1739602828000,9.76832,2711.2,2710.5,1.13351112]
[1739602828427,3.68859,2711.1,2710.5,1.13351112]
[1739602828736,9.76832,2711.2,2710.5,1.13351112]
[1739602828939,6.0799,2711.2,2710.6,3.68912]
[1739602829125,6.0799,2711.2,2710.7,3.68907]
[1739602829336,0.7699,2712.0,2711.1,3.68851]
[1739602829510,0.7699,2711.6,2711.0,3.0]
[1739602829713,4.52121,2711.5,2710.8,6.68892]
[1739602829939,3.68813,2711.4,2710.8,6.68892]
[1739602830254,3.68813,2711.4,2710.7,7.85621303]
[1739602830408,3.68813,2711.4,2710.8,1.18123422]
[1739602830936,0.8332,2711.5,2711.0,3.0]
[1739602831140,4.52124,2711.5,2710.8,4.18123422]
[1739602831427,4.52124,2711.5,2710.8,7.87016422]
[1739602831628,3.68814,2711.4,2710.8,4.18123422]
[1739602833307,3.68814,2711.4,2710.8,7.87012422]
[1739602833510,4.52122,2711.5,2710.9,3.6888]
[1739602833697,4.52122,2711.5,2710.8,4.87013422]
[1739602833698,4.5213,2711.5,2710.8,4.87013422]
[1739602835035,6.1432,2711.5,2711.0,3.0]
[1739602835245,9.83119,2711.5,2711.0,3.0]
[1739602835771,6.1432,2711.5,2711.0,3.0]
[1739602836063,9.8312,2711.5,2710.8,4.87013422]
[1739602837137,9.8312,2711.5,2710.8,4.87007422]
[1739602837138,6.1432,2711.5,2710.8,4.87007422]
[1739602837333,3.68821,2711.4,2710.8,4.87007422]
[1739602837537,6.1432,2711.5,2710.8,4.87007422]
[1739602837739,9.8312,2711.5,2711.0,3.0]
[1739602838060,6.1432,2711.5,2711.0,3.0]
[1739602838258,6.1432,2711.5,2711.0,4.48461]
[1739602840328,6.1432,2711.5,2711.0,0.796]
[1739602840560,9.83122,2711.5,2711.0,0.796]
[1739602841767,12.04622,2711.5,2711.0,0.796]
[1739602841953,9.83122,2711.5,2711.0,0.796]
[1739602845369,13.51932,2711.5,2711.0,0.796]
[1739602846063,9.83122,2711.5,2711.0,0.796]
[1739602846367,3.68815,2711.4,2711.0,0.796]
[1739602846549,9.83122,2711.5,2710.8,5.66052422]
[1739602846756,13.51932,2711.5,2710.8,5.66052422]
[1739602847365,9.83122,2711.5,2710.9,3.0]
[1739602847869,3.68814,2711.4,2710.9,3.0]
[1739602848969,3.68828,2711.3,2710.9,3.0]
[1739602849167,3.68906,2710.8,2710.2,0.7904]
[1739602849376,0.8141,2710.7,2710.2,1.55442992]
[1739602849870,0.8141,2710.7,2710.2,0.76402992]
[1739602849871,3.68932,2710.6,2710.2,0.76402992]
[1739602850103,3.68958,2710.4,2709.8,0.8316]
[1739602850277,4.50206,2710.3,2709.8,0.8316]
[1739602850440,4.50206,2710.3,2709.7,3.16012921]
[1739602850641,4.50206,2710.3,2709.7,3.0]
[1739602850846,4.50206,2710.3,2709.7,4.121282]
[1739602851046,3.68977,2710.2,2709.7,1.121282]
[1739602851258,3.68977,2710.2,2709.6,4.52217]
[1739602851460,3.68977,2710.2,2709.6,0.8316]
[1739602851659,0.8124,2710.3,2709.6,0.8316]
[1739602851882,3.6899,2710.1,2709.6,0.8316]
[1739602852075,3.6899,2710.1,2709.6,3.0]
[1739602852648,3.6899,2710.1,2709.5,3.69065]
[1739602852849,3.6899,2710.1,2709.5,4.82798292]
[1739602853082,4.50203,2710.3,2709.6,3.0]
[1739602853282,4.50203,2710.3,2709.6,6.69057]
[1739602854586,3.68976,2710.2,2709.6,3.0]
[1739602856655,3.68976,2710.2,2709.6,6.69058]
[1739602856886,4.50203,2710.3,2709.6,6.69058]
[1739602856887,4.50203,2710.3,2709.6,8.24160321]
[1739602857266,3.68978,2710.2,2709.6,8.24160321]
[1739602858088,4.50203,2710.3,2709.6,8.24160321]
[1739602858277,4.50203,2710.3,2709.7,3.69038]
[1739602859886,8.19177,2710.3,2709.7,3.69038]
[1739602860184,3.68978,2710.2,2709.6,1.55102321]
[1739602860487,4.50203,2710.3,2709.6,5.24148321]
[1739602861088,0.8124,2710.3,2709.8,3.6903]
[1739602861286,5.31,2710.4,2710.0,3.68992]
[1739602861670,6.1378,2710.5,2710.0,3.68992]
[1739602863589,9.82724,2710.5,2709.9,0.8122]
[1739602863789,3.68959,2710.4,2709.7,3.8122]
[1739602863996,3.68962,2710.3,2709.7,7.50261]
[1739602864495,3.68962,2710.3,2709.7,8.621916]
[1739602864859,6.1378,2710.5,2709.7,4.931506]
[1739602865061,3.68952,2710.4,2709.8,3.69027]
[1739602865377,3.68952,2710.4,2709.7,3.8122]
[1739602865571,3.68977,2710.2,2709.7,3.8122]
[1739602868697,4.51771,2710.1,2709.7,3.0]
[1739602868995,0.8278,2710.1,2709.7,3.0]
[1739602873905,0.8278,2710.1,2709.8,3.69029]
[1739602875306,0.8278,2710.1,2709.7,3.0]
[1739602875474,0.8278,2710.1,2709.7,3.75027]
[1739602876071,0.8278,2710.1,2709.7,7.44068]
[1739602876605,0.8278,2710.1,2709.7,3.75027]
[1739602877607,0.8278,2710.1,2709.7,7.44066]
[1739602877967,0.8278,2710.1,2709.7,3.75027]
[1739602878200,0.8278,2710.1,2709.8,3.69029]
[1739602881921,0.8278,2710.1,2709.7,7.44068]
[1739602882216,0.8278,2710.1,2709.7,6.69041]
[1739602883217,0.8278,2710.1,2709.8,3.6903]
[1739602883591,0.8278,2710.1,2709.7,3.0]
[1739602884315,0.8278,2710.1,2709.7,6.69043]
[1739602886599,0.8278,2710.1,2709.7,3.0]
[1739602886800,4.5177,2710.1,2709.7,3.0]
[1739602887000,4.5177,2710.1,2709.6,3.0]
[1739602887206,0.8278,2710.1,2709.6,6.69055]
[1739602887795,3.6899,2710.1,2709.6,3.0]
[1739602887983,3.6899,2710.1,2708.4,5.38]
[1739602887984,0.7908,2709.4,2708.7,3.93672921]
[1739602888185,0.7908,2709.4,2708.9,3.69143]
[1739602888383,0.7908,2709.4,2709.0,3.0]
[1739602888616,0.7908,2709.4,2709.0,6.69139]
[1739602888988,0.7908,2709.4,2708.8,3.39367292]
[1739602889206,0.7908,2709.8,2709.2,4.46765]
[1739602889410,0.7908,2709.8,2709.4,3.69073]
[1739602889606,6.1008,2709.8,2709.4,3.69073]
[1739602889808,6.1008,2709.8,2709.2,4.46766]
[1739602889809,0.7908,2710.2,2709.7,3.69044]
[1739602890404,0.7908,2710.2,2709.7,7.38079]
[1739602890603,0.7908,2710.2,2709.7,3.69035]
[1739602890819,0.7908,2710.2,2709.8,3.69026]
[1739602891826,0.7908,2710.2,2709.6,7.46709]
[1739602891995,0.7908,2710.1,2709.3,3.16012921]
[1739602892192,4.48071,2710.1,2709.4,3.69076]
[1739602892394,4.48071,2710.1,2709.5,3.0]
[1739602893425,4.48071,2710.1,2709.5,3.6907]
[1739602894926,0.7908,2710.1,2709.6,3.69057]
[1739602895421,0.7908,2710.1,2709.5,3.6907]
[1739602895927,4.48071,2710.1,2709.5,3.6907]
[1739602896230,4.48071,2710.1,2709.6,3.69056]
[1739602897329,4.48071,2710.1,2709.4,3.0]
[1739602897488,4.48071,2710.1,2709.4,3.6597882]
[1739602898198,4.48071,2710.1,2709.5,3.69062]
[1739602898617,0.7908,2710.1,2709.6,3.69055]
[1739602898821,0.7908,2710.1,2709.8,3.6902]
[1739602903499,0.7908,2710.1,2709.6,3.69048]
[1739602906967,0.7908,2710.1,2709.6,7.38094]
[1739602907239,0.7908,2710.1,2709.7,3.69044]
[1739602908338,0.7908,2710.1,2709.6,4.79453282]
[1739602908916,0.7908,2710.1,2709.6,8.48501282]
[1739602909102,0.7908,2710.1,2709.6,4.79453282]
[1739602911254,0.7908,2710.1,2709.6,3.69046]
[1739602911854,4.48072,2710.1,2709.6,3.69046]
[1739602912059,0.8235,2710.0,2709.6,3.0]
[1739602912462,0.8235,2710.0,2709.6,3.69057]
[1739602912938,0.8235,2710.0,2709.6,8.16765]
[1739602913137,0.8235,2710.0,2709.7,1.116765]
[1739602913338,0.8235,2710.0,2709.6,4.47708]
[1739602915860,0.8235,2710.0,2709.7,3.69042]
[1739602916733,0.8028,2710.3,2710.1,3.6899]
[1739602916932,0.8028,2710.7,2710.3,3.0]
[1739602917230,0.8028,2710.7,2710.3,7.75415492]
[1739602918084,0.8028,2710.7,2710.4,3.68947]
[1739602918264,6.1128,2711.0,2710.5,3.95572921]
[1739602918429,6.1128,2711.0,2710.3,4.06454492]
[1739602918430,5.31,2711.2,2711.0,3.0]
[1739602918626,5.31,2711.2,2711.0,3.68866]
[1739602918863,0.8028,2711.5,2710.9,3.0]
[1739602919034,4.49082,2711.5,2710.9,6.6888]
[1739602919763,0.8028,2711.5,2710.9,6.6888]
[1739602922275,4.4909,2711.5,2710.9,3.0]
[1739602922748,0.8028,2711.5,2710.9,3.0]
[1739602922954,0.8028,2711.5,2711.0,0.98490292]
[1739602923143,4.4908,2711.5,2711.0,0.98490292]
[1739602924963,3.68814,2711.4,2711.0,0.98490292]
[1739602925163,0.8028,2711.5,2710.7,0.7956]
[1739602925461,3.68882,2710.9,2710.4,0.7956]
[1739602925666,3.68821,2711.4,2710.8,3.16012921]
[1739602925963,3.68826,2711.3,2710.9,0.39557292]
[1739602926151,3.68854,2711.1,2710.5,6.95572921]
[1739602926355,3.68854,2711.1,2710.5,0.7956]
[1739602926356,3.68871,2711.0,2710.5,0.7956]
[1739602926552,3.68905,2710.8,2710.3,1.86014492]
[1739602926741,0.8028,2710.7,2710.4,0.50202741]
[1739602926937,3.68881,2710.9,2710.3,3.7956]
[1739602927248,0.8028,2711.0,2710.3,3.7956]
[1739602927450,4.49149,2711.0,2710.3,7.48521]
[1739602928183,0.8028,2711.2,2710.6,3.0]
[1739602928385,3.68829,2711.3,2710.7,0.7956]
[1739602928551,0.8028,2711.4,2710.8,3.0]
[1739602928752,8.99803,2711.5,2710.8,9.84906921]
[1739602929082,8.99803,2711.5,2710.8,6.16012921]
[1739602929377,8.99803,2711.5,2710.7,5.91802292]
[1739602929378,3.6884,2711.2,2710.7,0.7956]
[1739602929669,0.8028,2711.2,2710.7,0.7956]
[1739602929963,3.68881,2710.9,2710.4,0.7994]
[1739602930184,3.68881,2710.9,2710.4,1.19535292]
[1739602931089,3.68908,2710.7,2710.4,0.39595292]
[1739602931293,3.68922,2710.6,2710.2,0.8077]
[1739602931467,3.68908,2710.7,2710.2,0.8077]
[1739602932184,4.44687,2710.8,2710.2,0.8077]
[1739602932371,3.68908,2710.7,2710.2,0.8077]
[1739602932993,0.7578,2710.8,2710.2,1.557472]
[1739602933155,0.7578,2710.8,2710.2,4.557472]
[1739602933688,4.44676,2710.8,2710.2,1.557472]
[1739602933856,4.44676,2710.8,2710.2,0.8077]
[1739602934569,3.68908,2710.7,2710.2,0.8077]
[1739602934767,3.68937,2710.5,2710.1,3.0]
[1739602934971,3.68937,2710.5,2710.0,3.0]
[1739602935482,3.68937,2710.5,2710.0,3.87749006]
[1739602936190,3.68914,2710.7,2710.0,3.87749006]
[1739602936843,3.68914,2710.7,2710.0,7.56751006]
[1739602937415,3.68914,2710.7,2710.1,4.49758]
[1739602937887,6.0678,2711.0,2710.3,0.8077]
[1739602938092,5.31,2711.0,2710.5,3.0]
[1739602939469,8.99869,2711.0,2710.5,3.0]
[1739602939676,3.68897,2710.8,2710.5,3.0]
[1739602940115,8.99869,2711.0,2710.5,3.0]
[1739602940277,3.68881,2710.9,2710.5,3.0]
[1739602940829,8.99869,2711.0,2710.5,3.0]
[1739602941241,8.99869,2711.0,2710.4,3.0]
[1739602942311,8.99869,2711.0,2710.4,4.43471592]
[1739602943512,8.99869,2711.0,2710.4,8.12418592]
[1739602943713,5.31,2711.0,2710.4,8.12418592]
[1739602943913,8.99877,2711.0,2710.4,4.43471592]
[1739602945842,8.99877,2711.0,2710.4,6.68938]
[1739602946641,8.99877,2711.0,2710.4,3.0]
[1739602948505,12.68755,2711.0,2710.4,3.0]
[1739602948705,8.99877,2711.0,2710.4,3.0]
[1739602948917,8.99877,2711.0,2710.5,0.8022]
[1739602951243,3.68882,2710.9,2710.5,0.8022]
[1739602951444,5.31,2711.0,2710.5,1.551382]
[1739602952756,8.99871,2711.0,2710.5,1.551382]
[1739602952908,8.99871,2711.0,2710.5,0.8022]
[1739602953855,5.31,2711.0,2710.5,0.8022]
[1739602954059,3.68847,2711.2,2710.5,0.8022]
[1739602954060,3.68847,2711.2,2710.8,0.809]
[1739602958238,3.68882,2710.9,2710.5,0.809]
[1739602959043,4.46955,2711.1,2710.5,0.809]
[1739602959044,3.68868,2711.0,2710.5,0.809]
[1739602959217,3.68868,2711.0,2710.5,1.927803]
[1739602960435,3.68883,2710.9,2710.5,0.809]
[1739602961202,3.68899,2710.8,2710.5,0.809]
[1739602961549,3.68911,2710.7,2710.2,3.8212]
[1739602964339,4.47191,2710.7,2710.2,3.8212]
[1739602966441,4.47191,2710.7,2710.2,4.66005001]
[1739602966638,3.68911,2710.7,2710.2,4.66005001]
[1739602966937,5.31,2710.8,2710.2,4.66005001]
[1739602967108,8.99899,2710.8,2710.2,8.34980001]
[1739602967571,5.31,2710.8,2710.2,4.66005001]
[1739602967775,5.31,2710.8,2710.3,3.6896]
[1739602968742,5.31,2710.8,2710.3,4.893543]
[1739602968946,5.31,2710.8,2710.6,3.6892]
[1739602969146,5.31,2710.8,2710.7,0.8212]
[1739602969349,5.31,2710.8,2710.7,4.51028]
[1739602970447,8.99815,2711.4,2710.9,3.0]
[1739602971473,0.7828,2711.5,2711.0,0.8212]
[1739602972596,3.6879,2711.6,2711.0,0.8212]
[1739602972774,3.68799,2711.5,2711.0,0.8212]
[1739602974274,3.68822,2711.4,2711.0,0.8212]
[1739602974869,3.68828,2711.3,2711.0,0.8212]
[1739602975096,4.47108,2711.3,2710.8,3.8212]
[1739602976193,0.7828,2711.3,2710.8,3.8212]
[1739602976363,3.68822,2711.4,2710.8,4.872227]
[1739602976564,3.68822,2711.4,2710.9,3.6888]
[1739602976765,3.68822,2711.4,2710.8,4.872227]
[1739602976965,3.68822,2711.4,2710.8,8.561087]
[1739602977284,3.68822,2711.4,2710.9,1.2250157]
[1739602977488,3.68822,2711.4,2710.8,3.8212]
[1739602978077,7.37648,2711.4,2710.8,3.8212]
[1739602978694,3.68822,2711.4,2710.8,3.8212]
[1739602978999,3.68827,2711.3,2710.8,3.8212]
[1739602979400,3.68827,2711.3,2710.8,7.51012]
[1739602979707,3.68815,2711.4,2710.9,1.119919]
[1739602980004,3.68815,2711.4,2710.8,7.51012]
[1739602980379,3.68815,2711.4,2710.8,3.8212]
[1739602980581,3.6883,2711.3,2710.8,3.8212]
[1739602980785,3.68815,2711.4,2710.8,3.8212]
[1739602981423,7.37639,2711.4,2710.8,3.8212]
[1739602981574,3.68815,2711.4,2710.8,3.8212]
[1739602982672,3.6883,2711.3,2710.8,3.8212]
[1739602983402,3.68876,2711.0,2710.4,0.8202]
[1739602983715,0.7835,2711.1,2710.6,3.68919]
[1739602983918,8.99815,2711.4,2710.7,0.8202]
[1739602984098,8.99815,2711.4,2710.7,4.50919]
[1739602984305,3.68832,2711.3,2710.7,4.50919]
[1739602986146,3.68832,2711.3,2710.8,3.68893]
[1739602986705,5.31,2711.4,2710.9,3.68871]
[1739602987406,5.31,2711.4,2711.1,4.50864]
[1739602987608,3.68761,2711.8,2711.2,0.8202]
[1739602991751,3.68775,2711.7,2711.2,0.8202]
[1739602992760,3.68775,2711.7,2711.2,3.8202]
[1739602992925,3.68775,2711.7,2711.2,4.88707692]
[1739602993441,3.6881,2711.5,2711.2,0.8202]
[1739602993620,3.68813,2711.4,2711.0,0.7896]
[1739602993816,3.6881,2711.5,2710.8,0.7896]
[1739602993817,3.68833,2711.3,2710.8,0.7896]
[1739602996243,3.6886,2711.1,2710.8,0.7896]
[1739602996733,3.68869,2711.0,2710.8,0.7896]
[1739602997751,4.49701,2711.2,2710.8,0.7896]
[1739602997937,3.68855,2711.1,2710.8,0.7896]
[1739602999551,3.68872,2711.0,2710.8,0.7896]
[1739602999936,3.68855,2711.1,2710.8,0.7896]
[1739603001611,3.68855,2711.1,2710.5,0.7896]
[1739603001819,3.68868,2711.0,2710.5,0.7896]
[1739603002036,0.8085,2711.2,2710.6,3.68921]
[1739603002240,3.68855,2711.1,2710.6,3.68921]
[1739603002442,3.68855,2711.1,2710.6,3.0]
[1739603003456,0.8085,2711.2,2709.7,0.7896]
[1739603003457,3.68987,2710.2,2709.7,0.7896]
[1739603003656,3.16012921,2710.9,2709.9,6.94972921]
[1739603003657,0.8085,2710.9,2709.9,6.94972921]
[1739603003950,4.49704,2711.1,2710.5,0.7896]
[1739603004117,3.68854,2711.1,2710.5,0.7896]
[1739603004452,3.68869,2711.0,2710.5,0.7896]
[1739603004747,3.68882,2710.9,2710.5,0.7896]
[1739603004953,3.68919,2710.7,2710.2,3.7896]
[1739603005115,3.68919,2710.7,2710.2,4.60704229]
[1739603005318,3.68924,2710.6,2710.2,1.60704229]
[1739603005620,3.6894,2710.5,2710.2,0.7896]
[1739603005951,3.6894,2710.5,2710.0,1.48457292]
[1739603006260,3.68951,2710.4,2710.0,1.48457292]
[1739603006557,3.6894,2710.5,2710.0,1.48457292]
[1739603008766,3.68923,2710.6,2710.0,1.48457292]
[1739603008936,3.68923,2710.6,2710.1,0.83348621]
[1739603010938,0.8085,2710.8,2710.0,0.7896]
[1739603011141,3.68959,2710.4,2710.0,0.7896]
[1739603012063,0.8085,2710.8,2710.1,3.0]
[1739603012064,4.49746,2710.8,2710.1,3.0]
[1739603012229,7.37804,2710.8,2710.2,0.7684]
[1739603012780,3.68908,2710.7,2710.2,0.7684]
[1739603014685,3.68896,2710.8,2710.2,0.7684]
[1739603014686,3.68896,2710.8,2710.2,5.203938]
[1739603014847,3.6887,2711.0,2710.3,3.0]
[1739603015048,5.31,2711.1,2710.6,0.7684]
[1739603015384,8.99818,2711.4,2710.8,0.7684]
[1739603016283,3.688,2711.5,2711.0,0.7684]
[1739603016482,3.6879,2711.6,2711.0,4.83013292]
[1739603017363,3.6879,2711.6,2711.0,8.51870292]
[1739603019089,3.68763,2711.8,2711.0,8.51870292]
[1739603019090,3.688,2711.5,2711.0,4.83013292]
[1739603019289,3.68758,2711.8,2711.0,4.83013292]
[1739603019664,3.68795,2711.6,2711.0,4.83013292]
[1739603019874,3.68806,2711.5,2711.1,0.61930554]
[1739603021499,3.68827,2711.3,2711.0,0.7684]
[1739603022302,3.68806,2711.5,2711.0,0.7684]
[1739603022902,3.68813,2711.4,2711.0,0.7684]
[1739603023100,3.68806,2711.5,2711.0,0.7684]
[1739603023309,5.31,2711.9,2710.7,3.0]
[1739603023310,3.68835,2711.3,2710.7,3.0]
[1739603023631,3.68853,2711.1,2710.7,3.7613]
[1739603023900,3.68872,2711.0,2710.7,3.7613]
[1739603024075,3.68883,2710.9,2710.5,0.7613]
[1739603024281,3.68895,2710.8,2710.5,0.7613]
[1739603024489,3.68883,2710.9,2710.5,0.7613]
[1739603025207,3.68883,2710.9,2710.5,1.13743]
[1739603025787,3.68899,2710.8,2710.5,1.13743]
[1739603026502,3.68899,2710.8,2710.5,0.7613]
[1739603026705,3.68917,2710.7,2710.3,3.7613]
[1739603027004,3.68917,2710.7,2710.3,0.7613]
[1739603027803,3.68939,2710.5,2710.3,0.7613]
[1739603028136,3.68922,2710.6,2710.3,0.7613]
[1739603029131,3.68922,2710.6,2709.9,6.85016921]
[1739603029132,3.68945,2710.5,2709.9,6.85016921]
[1739603029336,3.68945,2710.5,2710.0,0.7613]
[1739603029512,3.68941,2710.5,2710.0,3.7613]
[1739603031036,3.68941,2710.5,2710.0,3.79819614]
[1739603031406,3.68941,2710.5,2710.0,3.7613]
[1739603031745,3.68941,2710.5,2710.0,3.79819611]
[1739603031909,3.68941,2710.5,2710.0,4.93154422]